Body Name,Document Number,Service,Type of Expenditure,Invoice Date,Supplier Name,Cost to the Council (Amount Exc VAT),Month
EREWASH BOROUGH COUNCIL,27609,Non Domestic Rates Retention  ,NNDR Tariff                   ,21-Aug-2023,DERBY CITY COUNCIL                      ,"531,923.64",Aug-23
EREWASH BOROUGH COUNCIL,26434,Community Services            ,Stationery                    ,09-Jun-2023,PPL PRS LTD                             ,356.48,Aug-23
EREWASH BOROUGH COUNCIL,26912,Arts Development              ,Special Events                ,10-Aug-2023,ALISTAIR LITTLEWOOD STORYTELLER         ,300.00,Aug-23
EREWASH BOROUGH COUNCIL,26076,Erewash Museum                ,General Equipment             ,17-Jul-2023,GALTEC SOLUTIONS LTD                    ,99.99,Aug-23
EREWASH BOROUGH COUNCIL,26076,Erewash Museum                ,General Equipment             ,17-Jul-2023,GALTEC SOLUTIONS LTD                    ,587.00,Aug-23
EREWASH BOROUGH COUNCIL,26170,Erewash Museum                ,Electricity                   ,12-Jul-2023,TOTALENERGIES GAS & POWER LTD           ,606.71,Aug-23
EREWASH BOROUGH COUNCIL,26654,Erewash Museum                ,Goods for Resale              ,20-Apr-2023,BRITISH FOSSILS                         ,707.60,Aug-23
EREWASH BOROUGH COUNCIL,26076,Erewash Museum                ,Conservation                  ,17-Jul-2023,GALTEC SOLUTIONS LTD                    ,99.99,Aug-23
EREWASH BOROUGH COUNCIL,25158,Erewash Museum                ,Special Events                ,10-Aug-2023,ZOE'S PARTY ANIMALS                     ,345.00,Aug-23
EREWASH BOROUGH COUNCIL,26076,Erewash Museum                ,Fees Costs and Expenses       ,17-Jul-2023,GALTEC SOLUTIONS LTD                    ,99.99,Aug-23
EREWASH BOROUGH COUNCIL,26076,Erewash Museum                ,Fees Costs and Expenses       ,17-Jul-2023,GALTEC SOLUTIONS LTD                    ,510.00,Aug-23
EREWASH BOROUGH COUNCIL,26462,General Entertainment         ,Special Events                ,23-Jul-2023,EFFECTIVE SECURITY SERVICES LTD         ,765.00,Aug-23
EREWASH BOROUGH COUNCIL,26298,General Entertainment         ,Special Events                ,25-Jul-2023,PB FIRE LTD                             ,410.00,Aug-23
EREWASH BOROUGH COUNCIL,26868,General Entertainment         ,Special Events                ,02-Aug-2023,PHILIP BATES T/A BADGER PA HIRE         ,950.00,Aug-23
EREWASH BOROUGH COUNCIL,26886,General Entertainment         ,Special Events                ,31-Jul-2023,ANDILOOS TOILET HIRE                    ,420.00,Aug-23
EREWASH BOROUGH COUNCIL,26648,Communications                ,Fees Costs and Expenses       ,06-Jun-2023,SHAW TRUST                              ,"3,360.00",Aug-23
EREWASH BOROUGH COUNCIL,26225,Community Safety              ,General Equipment             ,19-Jul-2023,JENSON PRESS PRINTERS                   ,275.00,Aug-23
EREWASH BOROUGH COUNCIL,26080,"Police, Crime Commissioner Com",Contracted Services           ,08-Jul-2023,JOKER ENTERTAINMENT                     ,780.00,Aug-23
EREWASH BOROUGH COUNCIL,26511,"Police, Crime Commissioner Com",Contracted Services           ,01-Aug-2023,VALLEY CIDS T/A BLEND YOUTH PROJECT     ,"1,032.00",Aug-23
EREWASH BOROUGH COUNCIL,25878,"Police, Crime Commissioner Com",Contracted Services           ,05-Jul-2023,SUPPORTING COMMUNITIES                  ,"2,530.00",Aug-23
EREWASH BOROUGH COUNCIL,26045,"Police, Crime Commissioner Com",Contracted Services           ,14-Jul-2023,PB FIRE LTD                             ,420.00,Aug-23
EREWASH BOROUGH COUNCIL,26075,"Police, Crime Commissioner Com",Contracted Services           ,12-Jul-2023,COTMANHAY COMMUNITY NETWORK             ,350.00,Aug-23
EREWASH BOROUGH COUNCIL,26455,"Police, Crime Commissioner Com",Project Grants                ,24-Jul-2023,HOPE Long Eaton                         ,"1,034.00",Aug-23
EREWASH BOROUGH COUNCIL,26865,"Police, Crime Commissioner Com",Project Grants                ,31-May-2023,PARKSIDE HIGH CIC                       ,948.00,Aug-23
EREWASH BOROUGH COUNCIL,25833,Transport Trading Account     ,Training                      ,05-Jul-2023,ONE CALL TRAINING                       ,795.00,Aug-23
EREWASH BOROUGH COUNCIL,27834,Transport Trading Account     ,Fuel                          ,31-Aug-2023,THE RIGHT FUELCARD COMPANY LTD          ,"2,364.76",Aug-23
EREWASH BOROUGH COUNCIL,26855,Transport Trading Account     ,Materials and Consumables     ,01-Jun-2023,STEVE BEAUMONT LTD T/A AUTOSMART        ,373.10,Aug-23
EREWASH BOROUGH COUNCIL,26861,Transport Trading Account     ,Materials and Consumables     ,19-Apr-2023,STEVE BEAUMONT LTD T/A AUTOSMART        ,289.12,Aug-23
EREWASH BOROUGH COUNCIL,26185,Household Waste Collection    ,Agency Staff                  ,21-Jul-2023,EXTRA PERSONNEL LTD                     ,"6,608.24",Aug-23
EREWASH BOROUGH COUNCIL,26005,Household Waste Collection    ,Agency Staff                  ,14-Jul-2023,EXTRA PERSONNEL LTD                     ,"6,950.12",Aug-23
EREWASH BOROUGH COUNCIL,25816,Household Waste Collection    ,Agency Staff                  ,07-Jul-2023,EXTRA PERSONNEL LTD                     ,"7,370.84",Aug-23
EREWASH BOROUGH COUNCIL,26143,Household Waste Collection    ,Agency Staff                  ,15-Jul-2023,WORKCHAIN LTD                           ,154.56,Aug-23
EREWASH BOROUGH COUNCIL,25969,Household Waste Collection    ,Agency Staff                  ,08-Jul-2023,WORKCHAIN LTD                           ,449.82,Aug-23
EREWASH BOROUGH COUNCIL,26223,Household Waste Collection    ,Training                      ,19-Jul-2023,LARAC LTD                               ,445.00,Aug-23
EREWASH BOROUGH COUNCIL,26468,Household Waste Collection    ,Tyres                         ,31-Jul-2023,LODGE TYRE COMPANY LTD                  ,"3,417.35",Aug-23
EREWASH BOROUGH COUNCIL,26441,Household Waste Collection    ,Bins                          ,26-Jul-2023,KEYTRACKER LIMITED                      ,302.95,Aug-23
EREWASH BOROUGH COUNCIL,26487,Household Waste Collection    ,Bins                          ,28-Jul-2023,ROLLIN TRANSPORT TRAINING               ,260.00,Aug-23
EREWASH BOROUGH COUNCIL,25889,Household Waste Collection    ,Repairs and Maintenance       ,10-Jul-2023,PARTIC MOTOR SPARES LTD                 ,299.00,Aug-23
EREWASH BOROUGH COUNCIL,26184,Trade Waste                   ,Agency Staff                  ,21-Jul-2023,EXTRA PERSONNEL LTD                     ,487.50,Aug-23
EREWASH BOROUGH COUNCIL,25815,Trade Waste                   ,Agency Staff                  ,07-Jul-2023,EXTRA PERSONNEL LTD                     ,487.50,Aug-23
EREWASH BOROUGH COUNCIL,26468,Trade Waste                   ,Tyres                         ,31-Jul-2023,LODGE TYRE COMPANY LTD                  ,317.45,Aug-23
EREWASH BOROUGH COUNCIL,26185,Kerbside Recycling Collection ,Agency Staff                  ,21-Jul-2023,EXTRA PERSONNEL LTD                     ,"4,405.50",Aug-23
EREWASH BOROUGH COUNCIL,26005,Kerbside Recycling Collection ,Agency Staff                  ,14-Jul-2023,EXTRA PERSONNEL LTD                     ,"4,633.42",Aug-23
EREWASH BOROUGH COUNCIL,25816,Kerbside Recycling Collection ,Agency Staff                  ,07-Jul-2023,EXTRA PERSONNEL LTD                     ,"4,913.89",Aug-23
EREWASH BOROUGH COUNCIL,26143,Kerbside Recycling Collection ,Agency Staff                  ,15-Jul-2023,WORKCHAIN LTD                           ,103.04,Aug-23
EREWASH BOROUGH COUNCIL,25969,Kerbside Recycling Collection ,Agency Staff                  ,08-Jul-2023,WORKCHAIN LTD                           ,299.88,Aug-23
EREWASH BOROUGH COUNCIL,26468,Kerbside Recycling Collection ,Tyres                         ,31-Jul-2023,LODGE TYRE COMPANY LTD                  ,"3,503.90",Aug-23
EREWASH BOROUGH COUNCIL,25838,Kerbside Recycling Collection ,Repairs and Maintenance       ,05-Jul-2023,DENNIS EAGLE LTD                        ,284.63,Aug-23
EREWASH BOROUGH COUNCIL,26463,Kerbside Recycling Collection ,Repairs and Maintenance       ,27-Jul-2023,EUROTRUCK MIDLANDS LTD                  ,395.00,Aug-23
EREWASH BOROUGH COUNCIL,26889,Environmental Protection Act  ,Work In Default               ,21-Jul-2023,P G BOSWORTH LIMITED                    ,"2,150.00",Aug-23
EREWASH BOROUGH COUNCIL,26029,Atmospheric Pollution         ,Nitrogen Dioxide Survey       ,13-Jul-2023,STAFFORDSHIRE COUNTY COUNCIL            ,"1,714.05",Aug-23
EREWASH BOROUGH COUNCIL,25842,Noise Control                 ,General Equipment             ,06-Jul-2023,CAMPBELL ASSOCIATES                     ,886.00,Aug-23
EREWASH BOROUGH COUNCIL,26135,Infec Disease & Food Poisoning,Contracted Services           ,19-Jul-2023,OYSTER PARTNERSHIP LTD                  ,456.10,Aug-23
EREWASH BOROUGH COUNCIL,26398,Infec Disease & Food Poisoning,Contracted Services           ,26-Jul-2023,OYSTER PARTNERSHIP LTD                  ,435.18,Aug-23
EREWASH BOROUGH COUNCIL,25771,Infec Disease & Food Poisoning,Contracted Services           ,05-Jul-2023,OYSTER PARTNERSHIP LTD                  ,305.98,Aug-23
EREWASH BOROUGH COUNCIL,25962,Infec Disease & Food Poisoning,Contracted Services           ,12-Jul-2023,OYSTER PARTNERSHIP LTD                  ,716.46,Aug-23
EREWASH BOROUGH COUNCIL,25574,Infec Disease & Food Poisoning,Contracted Services           ,28-Jun-2023,OYSTER PARTNERSHIP LTD                  ,302.30,Aug-23
EREWASH BOROUGH COUNCIL,25383,Infec Disease & Food Poisoning,Contracted Services           ,21-Jun-2023,OYSTER PARTNERSHIP LTD                  ,303.68,Aug-23
EREWASH BOROUGH COUNCIL,25795,Infec Disease & Food Poisoning,Contracted Services           ,05-Jul-2023,BUCKINGHAM FUTURES LIMITED              ,420.00,Aug-23
EREWASH BOROUGH COUNCIL,25986,Infec Disease & Food Poisoning,Contracted Services           ,12-Jul-2023,BUCKINGHAM FUTURES LIMITED              ,539.00,Aug-23
EREWASH BOROUGH COUNCIL,25770,Infec Disease & Food Poisoning,Fees Costs and Expenses       ,05-Jul-2023,OYSTER PARTNERSHIP LTD                  ,517.50,Aug-23
EREWASH BOROUGH COUNCIL,26397,Infec Disease & Food Poisoning,Fees Costs and Expenses       ,26-Jul-2023,OYSTER PARTNERSHIP LTD                  ,521.10,Aug-23
EREWASH BOROUGH COUNCIL,26218,Corporate Health and Safety   ,Fire Maintenance              ,09-Jun-2023,CHURCHES FIRE SECURITY LTD              ,487.38,Aug-23
EREWASH BOROUGH COUNCIL,26602,Corporate Health and Safety   ,Water Testing                 ,31-Jul-2023,STERILIZING SERVICES LTD                ,"1,126.40",Aug-23
EREWASH BOROUGH COUNCIL,25579,Corporate Health and Safety   ,Water Testing                 ,29-Jun-2023,STERILIZING SERVICES LTD                ,746.40,Aug-23
EREWASH BOROUGH COUNCIL,25796,Urban Renewal                 ,Agency Staff                  ,05-Jul-2023,BUCKINGHAM FUTURES LIMITED              ,"1,406.00",Aug-23
EREWASH BOROUGH COUNCIL,25985,Urban Renewal                 ,Agency Staff                  ,12-Jul-2023,BUCKINGHAM FUTURES LIMITED              ,"1,406.00",Aug-23
EREWASH BOROUGH COUNCIL,26611,Urban Renewal                 ,Agency Staff                  ,02-Aug-2023,BUCKINGHAM FUTURES LIMITED              ,"1,366.10",Aug-23
EREWASH BOROUGH COUNCIL,26420,Urban Renewal                 ,Agency Staff                  ,26-Jul-2023,BUCKINGHAM FUTURES LIMITED              ,"1,397.77",Aug-23
EREWASH BOROUGH COUNCIL,26150,Urban Renewal                 ,Agency Staff                  ,19-Jul-2023,BUCKINGHAM FUTURES LIMITED              ,"1,406.00",Aug-23
EREWASH BOROUGH COUNCIL,25863,Homelessness                  ,Temporary Accommodation       ,10-Jul-2023,GLOBAL VILLAGE HOTEL & RESORTS LTD      ,420.00,Aug-23
EREWASH BOROUGH COUNCIL,26048,Homelessness                  ,Temporary Accommodation       ,17-Jul-2023,GLOBAL VILLAGE HOTEL & RESORTS LTD      ,420.00,Aug-23
EREWASH BOROUGH COUNCIL,26240,Homelessness                  ,Temporary Accommodation       ,24-Jul-2023,GLOBAL VILLAGE HOTEL & RESORTS LTD      ,420.00,Aug-23
EREWASH BOROUGH COUNCIL,26241,Homelessness                  ,Temporary Accommodation       ,24-Jul-2023,GLOBAL VILLAGE HOTEL & RESORTS LTD      ,420.00,Aug-23
EREWASH BOROUGH COUNCIL,26470,Homelessness                  ,Temporary Accommodation       ,31-Jul-2023,GLOBAL VILLAGE HOTEL & RESORTS LTD      ,480.00,Aug-23
EREWASH BOROUGH COUNCIL,25862,Homelessness                  ,Temporary Accommodation       ,10-Jul-2023,GLOBAL VILLAGE HOTEL & RESORTS LTD      ,840.00,Aug-23
EREWASH BOROUGH COUNCIL,26049,Homelessness                  ,Temporary Accommodation       ,17-Jul-2023,GLOBAL VILLAGE HOTEL & RESORTS LTD      ,840.00,Aug-23
EREWASH BOROUGH COUNCIL,26242,Homelessness                  ,Temporary Accommodation       ,24-Jul-2023,GLOBAL VILLAGE HOTEL & RESORTS LTD      ,840.00,Aug-23
EREWASH BOROUGH COUNCIL,26472,Homelessness                  ,Temporary Accommodation       ,31-Jul-2023,GLOBAL VILLAGE HOTEL & RESORTS LTD      ,960.00,Aug-23
EREWASH BOROUGH COUNCIL,27054,Homelessness                  ,Temporary Accommodation       ,21-Aug-2023,PARAMOUNT HOTEL                         ,300.00,Aug-23
EREWASH BOROUGH COUNCIL,26701,Homelessness                  ,Temporary Accommodation       ,07-Aug-2023,PARAMOUNT HOTEL                         ,360.00,Aug-23
EREWASH BOROUGH COUNCIL,26838,Homelessness                  ,Temporary Accommodation       ,14-Aug-2023,PARAMOUNT HOTEL                         ,420.00,Aug-23
EREWASH BOROUGH COUNCIL,27056,Homelessness                  ,Temporary Accommodation       ,21-Aug-2023,PARAMOUNT HOTEL                         ,420.00,Aug-23
EREWASH BOROUGH COUNCIL,26703,Homelessness                  ,Temporary Accommodation       ,07-Aug-2023,PARAMOUNT HOTEL                         ,720.00,Aug-23
EREWASH BOROUGH COUNCIL,26837,Homelessness                  ,Temporary Accommodation       ,14-Aug-2023,PARAMOUNT HOTEL                         ,840.00,Aug-23
EREWASH BOROUGH COUNCIL,27055,Homelessness                  ,Temporary Accommodation       ,21-Aug-2023,PARAMOUNT HOTEL                         ,840.00,Aug-23
EREWASH BOROUGH COUNCIL,26429,Homelessness                  ,Temporary Accommodation       ,31-Jul-2023,A38 WOODLANDS                           ,378.00,Aug-23
EREWASH BOROUGH COUNCIL,26631,Homelessness                  ,Temporary Accommodation       ,07-Aug-2023,A38 WOODLANDS                           ,378.00,Aug-23
EREWASH BOROUGH COUNCIL,26632,Homelessness                  ,Temporary Accommodation       ,07-Aug-2023,A38 WOODLANDS                           ,378.00,Aug-23
EREWASH BOROUGH COUNCIL,26633,Homelessness                  ,Temporary Accommodation       ,07-Aug-2023,A38 WOODLANDS                           ,378.00,Aug-23
EREWASH BOROUGH COUNCIL,26630,Homelessness                  ,Temporary Accommodation       ,07-Aug-2023,A38 WOODLANDS                           ,406.00,Aug-23
EREWASH BOROUGH COUNCIL,26634,Homelessness                  ,Temporary Accommodation       ,07-Aug-2023,A38 WOODLANDS                           ,406.00,Aug-23
EREWASH BOROUGH COUNCIL,26432,Homelessness                  ,Temporary Accommodation       ,31-Jul-2023,A38 WOODLANDS                           ,270.00,Aug-23
EREWASH BOROUGH COUNCIL,26430,Homelessness                  ,Temporary Accommodation       ,31-Jul-2023,A38 WOODLANDS                           ,406.00,Aug-23
EREWASH BOROUGH COUNCIL,26010,Homelessness                  ,Temporary Accommodation       ,17-Jul-2023,A38 WOODLANDS                           ,270.00,Aug-23
EREWASH BOROUGH COUNCIL,26189,Homelessness                  ,Temporary Accommodation       ,24-Jul-2023,A38 WOODLANDS                           ,270.00,Aug-23
EREWASH BOROUGH COUNCIL,25808,Homelessness                  ,Temporary Accommodation       ,10-Jul-2023,A38 WOODLANDS                           ,378.00,Aug-23
EREWASH BOROUGH COUNCIL,26008,Homelessness                  ,Temporary Accommodation       ,17-Jul-2023,A38 WOODLANDS                           ,378.00,Aug-23
EREWASH BOROUGH COUNCIL,26011,Homelessness                  ,Temporary Accommodation       ,17-Jul-2023,A38 WOODLANDS                           ,378.00,Aug-23
EREWASH BOROUGH COUNCIL,26190,Homelessness                  ,Temporary Accommodation       ,24-Jul-2023,A38 WOODLANDS                           ,378.00,Aug-23
EREWASH BOROUGH COUNCIL,26192,Homelessness                  ,Temporary Accommodation       ,24-Jul-2023,A38 WOODLANDS                           ,378.00,Aug-23
EREWASH BOROUGH COUNCIL,25602,Homelessness                  ,Temporary Accommodation       ,02-Jul-2023,A38 WOODLANDS                           ,406.00,Aug-23
EREWASH BOROUGH COUNCIL,25603,Homelessness                  ,Temporary Accommodation       ,02-Jul-2023,A38 WOODLANDS                           ,406.00,Aug-23
EREWASH BOROUGH COUNCIL,25807,Homelessness                  ,Temporary Accommodation       ,10-Jul-2023,A38 WOODLANDS                           ,406.00,Aug-23
EREWASH BOROUGH COUNCIL,26009,Homelessness                  ,Temporary Accommodation       ,17-Jul-2023,A38 WOODLANDS                           ,406.00,Aug-23
EREWASH BOROUGH COUNCIL,26191,Homelessness                  ,Temporary Accommodation       ,24-Jul-2023,A38 WOODLANDS                           ,406.00,Aug-23
EREWASH BOROUGH COUNCIL,26478,Homelessness                  ,Temporary Accommodation       ,28-Jul-2023,ASCOT HOTEL                             ,350.00,Aug-23
EREWASH BOROUGH COUNCIL,26181,Homelessness                  ,Temporary Accommodation       ,14-Jul-2023,ASCOT HOTEL                             ,350.00,Aug-23
EREWASH BOROUGH COUNCIL,26182,Homelessness                  ,Temporary Accommodation       ,21-Jul-2023,ASCOT HOTEL                             ,350.00,Aug-23
EREWASH BOROUGH COUNCIL,26180,Homelessness                  ,Temporary Accommodation       ,07-Jul-2023,ASCOT HOTEL                             ,350.00,Aug-23
EREWASH BOROUGH COUNCIL,27067,Homelessness                  ,Leased Properties             ,11-Aug-2023,JP'S GROUNDS & MAINTENANCE SERVICES     ,490.00,Aug-23
EREWASH BOROUGH COUNCIL,26063,Homelessness                  ,Leased Properties             ,01-Jul-2023,EMH HOMES                               ,"1,171.89",Aug-23
EREWASH BOROUGH COUNCIL,26062,Homelessness                  ,Leased Properties             ,01-Jul-2023,EMH HOMES                               ,"1,477.32",Aug-23
EREWASH BOROUGH COUNCIL,25874,Homelessness                  ,Leased Properties             ,01-Jul-2023,FUTURES HOMESCAPE LTD                   ,"1,141.75",Aug-23
EREWASH BOROUGH COUNCIL,26422,Homelessness                  ,Fees Costs and Expenses       ,27-Jul-2023,HUMBLE ROOTS LIMITED                    ,657.69,Aug-23
EREWASH BOROUGH COUNCIL,25278,Homelessness                  ,Computer Software             ,20-Jun-2023,LOCATA (HOUSING SERVICES) LTD           ,"5,947.50",Aug-23
EREWASH BOROUGH COUNCIL,26702,Homelessness Prevention       ,Spend to Save                 ,07-Aug-2023,PARAMOUNT HOTEL                         ,360.00,Aug-23
EREWASH BOROUGH COUNCIL,26836,Homelessness Prevention       ,Spend to Save                 ,14-Aug-2023,PARAMOUNT HOTEL                         ,420.00,Aug-23
EREWASH BOROUGH COUNCIL,27053,Homelessness Prevention       ,Spend to Save                 ,21-Aug-2023,PARAMOUNT HOTEL                         ,420.00,Aug-23
EREWASH BOROUGH COUNCIL,27283,Performance Management        ,Data Protection               ,29-Aug-2023,INFORMATION COMMISSIONER                ,"2,895.00",Aug-23
EREWASH BOROUGH COUNCIL,26875,Community Grants              ,Project Grants                ,15-Aug-2023,ILKESTON LIFE COMMUNITY NEWSPAPER       ,"1,500.00",Aug-23
EREWASH BOROUGH COUNCIL,26580,Front Line Support Services   ,Security                      ,31-Jul-2023,KINGS ARMOURED SECURITY SERVICES        ,458.50,Aug-23
EREWASH BOROUGH COUNCIL,25880,Front Line Support Services   ,Software Licences             ,14-Apr-2023,PAY 360 LIMITED (CAPITA)                ,"26,639.90",Aug-23
EREWASH BOROUGH COUNCIL,27061,Treasury and Bank Charges     ,Bank Charges                  ,14-Aug-2023,LLOYDS BANK PLC                         ,825.99,Aug-23
EREWASH BOROUGH COUNCIL,26993,Treasury and Bank Charges     ,Credit/Debit Card Charges     ,16-Aug-2023,PAY 360 LIMITED (CAPITA)                ,"6,054.93",Aug-23
EREWASH BOROUGH COUNCIL,27432,Treasury and Bank Charges     ,Allpay/Post Office Charges    ,31-Aug-2023,ALLPAY LIMITED                          ,828.31,Aug-23
EREWASH BOROUGH COUNCIL,26072,Revenues and Benefits         ,Postages                      ,19-Jul-2023,ROYAL MAIL GROUP LTD.                   ,523.16,Aug-23
EREWASH BOROUGH COUNCIL,26273,Revenues and Benefits         ,Postages                      ,26-Jul-2023,ROYAL MAIL GROUP LTD.                   ,"2,309.28",Aug-23
EREWASH BOROUGH COUNCIL,25883,Revenues and Benefits         ,Postages                      ,12-Jul-2023,ROYAL MAIL GROUP LTD.                   ,596.07,Aug-23
EREWASH BOROUGH COUNCIL,25834,Revenues and Benefits         ,Postages                      ,06-Jul-2023,ROYAL MAIL GROUP LTD.                   ,395.00,Aug-23
EREWASH BOROUGH COUNCIL,25689,Revenues and Benefits         ,Postages                      ,05-Jul-2023,ROYAL MAIL GROUP LTD.                   ,"2,012.90",Aug-23
EREWASH BOROUGH COUNCIL,26689,Revenues and Benefits         ,Postages                      ,31-Jul-2023,TELSOLUTIONS LTD                        ,300.00,Aug-23
EREWASH BOROUGH COUNCIL,26590,Revenues and Benefits         ,Postages                      ,02-Aug-2023,FRAMA UK LIMITED                        ,"5,000.00",Aug-23
EREWASH BOROUGH COUNCIL,26799,ICT Support Services          ,Agency Staff                  ,10-Aug-2023,ROBERT HALF LTD                         ,905.76,Aug-23
EREWASH BOROUGH COUNCIL,26798,ICT Support Services          ,Agency Staff                  ,10-Aug-2023,ROBERT HALF LTD                         ,"1,091.13",Aug-23
EREWASH BOROUGH COUNCIL,26412,ICT Support Services          ,Agency Staff                  ,27-Jul-2023,ROBERT HALF LTD                         ,905.76,Aug-23
EREWASH BOROUGH COUNCIL,26603,ICT Support Services          ,Agency Staff                  ,03-Aug-2023,ROBERT HALF LTD                         ,905.76,Aug-23
EREWASH BOROUGH COUNCIL,26411,ICT Support Services          ,Agency Staff                  ,27-Jul-2023,ROBERT HALF LTD                         ,"1,091.13",Aug-23
EREWASH BOROUGH COUNCIL,26604,ICT Support Services          ,Agency Staff                  ,03-Aug-2023,ROBERT HALF LTD                         ,"1,091.13",Aug-23
EREWASH BOROUGH COUNCIL,26149,ICT Support Services          ,Agency Staff                  ,20-Jul-2023,ROBERT HALF LTD                         ,738.32,Aug-23
EREWASH BOROUGH COUNCIL,25979,ICT Support Services          ,Agency Staff                  ,13-Jul-2023,ROBERT HALF LTD                         ,905.76,Aug-23
EREWASH BOROUGH COUNCIL,25978,ICT Support Services          ,Agency Staff                  ,13-Jul-2023,ROBERT HALF LTD                         ,"1,015.05",Aug-23
EREWASH BOROUGH COUNCIL,26148,ICT Support Services          ,Agency Staff                  ,20-Jul-2023,ROBERT HALF LTD                         ,"1,122.09",Aug-23
EREWASH BOROUGH COUNCIL,26076,ICT Support Services          ,General Equipment             ,17-Jul-2023,GALTEC SOLUTIONS LTD                    ,299.97,Aug-23
EREWASH BOROUGH COUNCIL,26076,ICT Support Services          ,General Equipment             ,17-Jul-2023,GALTEC SOLUTIONS LTD                    ,"3,522.00",Aug-23
EREWASH BOROUGH COUNCIL,26151,ICT Support Services          ,Equipment Leasing Charge      ,20-Jul-2023,ANNODATA LIMITED                        ,"1,997.61",Aug-23
EREWASH BOROUGH COUNCIL,25193,ICT Support Services          ,Equipment Leasing Charge      ,16-Jun-2023,ANNODATA LIMITED                        ,"2,634.42",Aug-23
EREWASH BOROUGH COUNCIL,26447,ICT Support Services          ,Office Paper                  ,26-Jul-2023,ANTALIS DOCUMENT SUPPLIES               ,475.50,Aug-23
EREWASH BOROUGH COUNCIL,26293,ICT Support Services          ,GIS Software Licences         ,25-Jul-2023,IDOX SOFTWARE LIMITED                   ,"6,942.65",Aug-23
EREWASH BOROUGH COUNCIL,26443,ICT Support Services          ,Data Lines                    ,25-Jul-2023,INSIGHT DIRECT (UK) LTD                 ,"9,228.78",Aug-23
EREWASH BOROUGH COUNCIL,26444,ICT Support Services          ,Data Lines                    ,25-Jul-2023,INSIGHT DIRECT (UK) LTD                 ,"9,228.78",Aug-23
EREWASH BOROUGH COUNCIL,26445,ICT Support Services          ,Data Lines                    ,25-Jul-2023,INSIGHT DIRECT (UK) LTD                 ,"9,228.78",Aug-23
EREWASH BOROUGH COUNCIL,26483,ICT Support Services          ,Data Lines                    ,27-Jul-2023,INSIGHT DIRECT (UK) LTD                 ,"9,404.08",Aug-23
EREWASH BOROUGH COUNCIL,26162,ICT Support Services          ,Data Lines                    ,12-Jul-2023,VIRGIN MEDIA BUSINESS                   ,385.25,Aug-23
EREWASH BOROUGH COUNCIL,26272,ICT Support Services          ,Data Lines                    ,26-Jul-2023,ZEN INTERNET LIMITED                    ,"1,367.01",Aug-23
EREWASH BOROUGH COUNCIL,25846,ICT Support Services          ,Data Lines                    ,10-Jul-2023,AXESS SYSTEMS LTD                       ,564.00,Aug-23
EREWASH BOROUGH COUNCIL,26697,ICT Support Services          ,Mobile Phones                 ,08-Aug-2023,CLASS AFFINITY PROJECTS LTD             ,"2,410.45",Aug-23
EREWASH BOROUGH COUNCIL,26145,ICT Support Services          ,Telephones                    ,18-Jul-2023,INSIGHT DIRECT (UK) LTD                 ,"34,818.00",Aug-23
EREWASH BOROUGH COUNCIL,25873,Occupational Health & Welfare ,Occupational Health Service   ,05-Jul-2023,MEDIGOLD HEALTH CONSULTANCY LIMITED     ,662.00,Aug-23
EREWASH BOROUGH COUNCIL,27078,Development Control           ,Planning Fees                 ,22-Aug-2023,PORTALPLANQUEST LTD                     ,462.00,Aug-23
EREWASH BOROUGH COUNCIL,26843,Development Control           ,Consultants Fees              ,31-Jul-2023,TERRAQUEST DATA SOLUTIONS               ,896.10,Aug-23
EREWASH BOROUGH COUNCIL,26842,Development Control           ,Consultants Fees              ,31-Jul-2023,TERRAQUEST DATA SOLUTIONS               ,"6,095.90",Aug-23
EREWASH BOROUGH COUNCIL,25814,Development Control           ,Consultants Fees              ,07-Jul-2023,EXTRA PERSONNEL LTD                     ,582.54,Aug-23
EREWASH BOROUGH COUNCIL,26716,Development Control           ,Work In Default               ,30-Jun-2023,CUSHMAN & WAKEFIELD DEBENHAM TIE LEUNG  ,"2,750.00",Aug-23
EREWASH BOROUGH COUNCIL,26492,Planning Policy               ,Consultants Fees              ,20-Jul-2023,GEDLING BOROUGH COUNCIL                 ,350.00,Aug-23
EREWASH BOROUGH COUNCIL,26435,Planning Policy               ,Software Licences             ,20-Jul-2023,DERBYSHIRE COUNTY COUNCIL...            ,"1,373.28",Aug-23
EREWASH BOROUGH COUNCIL,26488,Economic Development          ,Project Grants                ,31-Jul-2023,INSIDE OUT GROUP (EUROPE) LTD           ,300.00,Aug-23
EREWASH BOROUGH COUNCIL,26858,Economic Development          ,Project Grants                ,28-Jul-2023,BROWNE JACOBSON                         ,"4,324.40",Aug-23
EREWASH BOROUGH COUNCIL,26146,Building Control - Fee Earning,Agency Staff                  ,20-Jul-2023,MATCHTECH GROUP (UK) LIMITED            ,825.00,Aug-23
EREWASH BOROUGH COUNCIL,26403,Building Control - Fee Earning,Agency Staff                  ,27-Jul-2023,MATCHTECH GROUP (UK) LIMITED            ,825.00,Aug-23
EREWASH BOROUGH COUNCIL,25970,Building Control - Fee Earning,Agency Staff                  ,13-Jul-2023,MATCHTECH GROUP (UK) LIMITED            ,"1,045.00",Aug-23
EREWASH BOROUGH COUNCIL,25774,Building Control - Fee Earning,Agency Staff                  ,06-Jul-2023,MATCHTECH GROUP (UK) LIMITED            ,"1,237.50",Aug-23
EREWASH BOROUGH COUNCIL,26396,Building Control Adv & Inform ,Contracted Services           ,26-Jul-2023,ALPHA PARTNER (MIDLANDS)  LIMITED       ,900.00,Aug-23
EREWASH BOROUGH COUNCIL,26152,Registration of Electors      ,Stationery                    ,18-Jul-2023,SCI PRINT LTD                           ,"7,167.91",Aug-23
EREWASH BOROUGH COUNCIL,26787,Civic Transport               ,Hire Charges                  ,31-Jul-2023,PINNACLE EXECUTIVE CARS LIMITED         ,839.65,Aug-23
EREWASH BOROUGH COUNCIL,26187,Green Space                   ,Agency Staff                  ,21-Jul-2023,EXTRA PERSONNEL LTD                     ,"2,677.63",Aug-23
EREWASH BOROUGH COUNCIL,26186,Green Space                   ,Agency Staff                  ,21-Jul-2023,EXTRA PERSONNEL LTD                     ,"3,316.79",Aug-23
EREWASH BOROUGH COUNCIL,26006,Green Space                   ,Agency Staff                  ,14-Jul-2023,EXTRA PERSONNEL LTD                     ,"2,908.67",Aug-23
EREWASH BOROUGH COUNCIL,26003,Green Space                   ,Agency Staff                  ,14-Jul-2023,EXTRA PERSONNEL LTD                     ,"3,490.45",Aug-23
EREWASH BOROUGH COUNCIL,25813,Green Space                   ,Agency Staff                  ,07-Jul-2023,EXTRA PERSONNEL LTD                     ,"2,855.94",Aug-23
EREWASH BOROUGH COUNCIL,25817,Green Space                   ,Agency Staff                  ,07-Jul-2023,EXTRA PERSONNEL LTD                     ,"4,921.16",Aug-23
EREWASH BOROUGH COUNCIL,26170,Green Space                   ,Electricity                   ,12-Jul-2023,TOTALENERGIES GAS & POWER LTD           ,990.41,Aug-23
EREWASH BOROUGH COUNCIL,26170,Green Space                   ,Electricity                   ,12-Jul-2023,TOTALENERGIES GAS & POWER LTD           ,"1,807.99",Aug-23
EREWASH BOROUGH COUNCIL,26168,Green Space                   ,Electricity                   ,12-Jul-2023,TOTALENERGIES GAS & POWER LTD           ,"2,294.41",Aug-23
EREWASH BOROUGH COUNCIL,26155,Green Space                   ,Gas                           ,14-Jul-2023,TOTALENERGIES GAS & POWER LTD           ,599.01,Aug-23
EREWASH BOROUGH COUNCIL,26610,Green Space                   ,Metered Water                 ,12-Jun-2023,ANGLIAN WATER BUSINESS (NATIONAL)       ,"1,187.15",Aug-23
EREWASH BOROUGH COUNCIL,26638,Green Space                   ,Metered Water                 ,12-Jul-2023,ANGLIAN WATER BUSINESS (NATIONAL)       ,"1,413.50",Aug-23
EREWASH BOROUGH COUNCIL,26609,Green Space                   ,Metered Water                 ,12-May-2023,ANGLIAN WATER BUSINESS (NATIONAL)       ,"1,230.93",Aug-23
EREWASH BOROUGH COUNCIL,26468,Green Space                   ,Tyres                         ,31-Jul-2023,LODGE TYRE COMPANY LTD                  ,875.50,Aug-23
EREWASH BOROUGH COUNCIL,26296,Green Space                   ,Materials and Consumables     ,25-Jul-2023,QSP TRAINING LTD                        ,559.10,Aug-23
EREWASH BOROUGH COUNCIL,26297,Green Space                   ,Materials and Consumables     ,25-Jul-2023,QSP TRAINING LTD                        ,559.10,Aug-23
EREWASH BOROUGH COUNCIL,26301,Green Space                   ,Materials and Consumables     ,25-Jul-2023,QSP TRAINING LTD                        ,559.10,Aug-23
EREWASH BOROUGH COUNCIL,26302,Green Space                   ,Materials and Consumables     ,25-Jul-2023,QSP TRAINING LTD                        ,559.10,Aug-23
EREWASH BOROUGH COUNCIL,26484,Green Space                   ,Materials and Consumables     ,28-Jul-2023,NOMIX ENVIRO LIMITED                    ,304.50,Aug-23
EREWASH BOROUGH COUNCIL,26442,Green Space                   ,Materials and Consumables     ,26-Jul-2023,ORIGIN AMENITY SOLUTIONS                ,310.55,Aug-23
EREWASH BOROUGH COUNCIL,26038,Green Space                   ,Materials and Consumables     ,14-Jul-2023,ORIGIN AMENITY SOLUTIONS                ,"1,540.80",Aug-23
EREWASH BOROUGH COUNCIL,26037,Green Space                   ,Materials and Consumables     ,14-Jul-2023,ORIGIN AMENITY SOLUTIONS                ,"1,802.94",Aug-23
EREWASH BOROUGH COUNCIL,26037,Green Space                   ,Materials and Consumables     ,14-Jul-2023,ORIGIN AMENITY SOLUTIONS                ,"1,076.76",Aug-23
EREWASH BOROUGH COUNCIL,26214,Green Space                   ,Materials and Consumables     ,18-Jul-2023,ORIGIN AMENITY SOLUTIONS                ,"3,297.00",Aug-23
EREWASH BOROUGH COUNCIL,26465,Green Space                   ,Materials and Consumables     ,27-Jul-2023,BANNER GROUP LIMITED                    ,"1,581.60",Aug-23
EREWASH BOROUGH COUNCIL,26076,Green Space                   ,Materials and Consumables     ,17-Jul-2023,GALTEC SOLUTIONS LTD                    ,299.97,Aug-23
EREWASH BOROUGH COUNCIL,26076,Green Space                   ,Materials and Consumables     ,17-Jul-2023,GALTEC SOLUTIONS LTD                    ,"1,761.00",Aug-23
EREWASH BOROUGH COUNCIL,26239,Green Space                   ,Materials and Consumables     ,22-Jul-2023,STANTON RECYCLING LIMITED               ,375.20,Aug-23
EREWASH BOROUGH COUNCIL,26040,Green Space                   ,Materials and Consumables     ,17-Jul-2023,STEELCRAFT FABRICATIONS                 ,290.00,Aug-23
EREWASH BOROUGH COUNCIL,26672,Green Space                   ,Materials and Consumables     ,25-Jul-2023,PETERSFIELD GROWING MEDIUM LTD          ,"4,719.00",Aug-23
EREWASH BOROUGH COUNCIL,26236,Green Space                   ,Materials and Consumables     ,21-Jul-2023,PROTECTIVE WEAR SUPPLIES LTD            ,555.64,Aug-23
EREWASH BOROUGH COUNCIL,26588,Green Space                   ,Contracted Services           ,31-Jul-2023,T H HEATH  CONTRACTS  LTD               ,"8,862.63",Aug-23
EREWASH BOROUGH COUNCIL,26849,Green Space                   ,Path Repairs                  ,26-Jul-2023,H A CONSTRUCTION SERVICES LTD           ,"8,326.17",Aug-23
EREWASH BOROUGH COUNCIL,26863,Green Space                   ,Repairs and Maintenance       ,24-Jul-2023,T C HARRISON GROUP LTD                  ,278.57,Aug-23
EREWASH BOROUGH COUNCIL,26888,Green Space                   ,Repairs and Maintenance       ,19-Jul-2023,T C HARRISON GROUP LTD                  ,278.65,Aug-23
EREWASH BOROUGH COUNCIL,26862,Green Space                   ,Repairs and Maintenance       ,27-Jul-2023,T C HARRISON GROUP LTD                  ,269.85,Aug-23
EREWASH BOROUGH COUNCIL,26023,Green Space                   ,Repairs and Maintenance       ,11-Jul-2023,FAROL LTD                               ,275.49,Aug-23
EREWASH BOROUGH COUNCIL,26024,Green Space                   ,Repairs and Maintenance       ,11-Jul-2023,FAROL LTD                               ,502.04,Aug-23
EREWASH BOROUGH COUNCIL,26220,Trees Hedges Local Nature Res ,Contracted Services           ,18-Jul-2023,RAMMSANDERSON ECOLOGY LTD               ,"1,393.88",Aug-23
EREWASH BOROUGH COUNCIL,26894,Trees Hedges Local Nature Res ,Contracted Services           ,14-Aug-2023,TOM RICHARDS TREE SERVICES              ,360.00,Aug-23
EREWASH BOROUGH COUNCIL,26895,Trees Hedges Local Nature Res ,Contracted Services           ,14-Aug-2023,TOM RICHARDS TREE SERVICES              ,480.00,Aug-23
EREWASH BOROUGH COUNCIL,27095,Trees Hedges Local Nature Res ,Contracted Services           ,16-Aug-2023,TOM RICHARDS TREE SERVICES              ,480.00,Aug-23
EREWASH BOROUGH COUNCIL,27094,Trees Hedges Local Nature Res ,Contracted Services           ,15-Aug-2023,TOM RICHARDS TREE SERVICES              ,840.00,Aug-23
EREWASH BOROUGH COUNCIL,26512,Trees Hedges Local Nature Res ,Contracted Services           ,01-Aug-2023,TOM RICHARDS TREE SERVICES              ,"15,560.00",Aug-23
EREWASH BOROUGH COUNCIL,26294,Play Areas                    ,Materials and Consumables     ,25-Jul-2023,GB SPORTS & LEISURE UK LIMITED          ,447.81,Aug-23
EREWASH BOROUGH COUNCIL,26671,Play Areas                    ,Materials and Consumables     ,31-Jul-2023,WICKSTEED LEISURE LTD                   ,673.13,Aug-23
EREWASH BOROUGH COUNCIL,26609,Allotments                    ,Metered Water                 ,12-May-2023,ANGLIAN WATER BUSINESS (NATIONAL)       ,409.56,Aug-23
EREWASH BOROUGH COUNCIL,26170,Cemeteries                    ,Electricity                   ,12-Jul-2023,TOTALENERGIES GAS & POWER LTD           ,349.29,Aug-23
EREWASH BOROUGH COUNCIL,26187,Public Conveniences           ,Agency Staff                  ,21-Jul-2023,EXTRA PERSONNEL LTD                     ,500.00,Aug-23
EREWASH BOROUGH COUNCIL,26003,Public Conveniences           ,Agency Staff                  ,14-Jul-2023,EXTRA PERSONNEL LTD                     ,500.00,Aug-23
EREWASH BOROUGH COUNCIL,25817,Public Conveniences           ,Agency Staff                  ,07-Jul-2023,EXTRA PERSONNEL LTD                     ,500.00,Aug-23
EREWASH BOROUGH COUNCIL,26170,Public Conveniences           ,Electricity                   ,12-Jul-2023,TOTALENERGIES GAS & POWER LTD           ,691.13,Aug-23
EREWASH BOROUGH COUNCIL,26610,Public Conveniences           ,Metered Water                 ,12-Jun-2023,ANGLIAN WATER BUSINESS (NATIONAL)       ,"1,627.55",Aug-23
EREWASH BOROUGH COUNCIL,26638,Public Conveniences           ,Metered Water                 ,12-Jul-2023,ANGLIAN WATER BUSINESS (NATIONAL)       ,"1,502.73",Aug-23
EREWASH BOROUGH COUNCIL,26609,Public Conveniences           ,Metered Water                 ,12-May-2023,ANGLIAN WATER BUSINESS (NATIONAL)       ,"1,479.91",Aug-23
EREWASH BOROUGH COUNCIL,26187,Street Scene                  ,Agency Staff                  ,21-Jul-2023,EXTRA PERSONNEL LTD                     ,"2,677.62",Aug-23
EREWASH BOROUGH COUNCIL,26186,Street Scene                  ,Agency Staff                  ,21-Jul-2023,EXTRA PERSONNEL LTD                     ,"3,316.79",Aug-23
EREWASH BOROUGH COUNCIL,26006,Street Scene                  ,Agency Staff                  ,14-Jul-2023,EXTRA PERSONNEL LTD                     ,"2,908.67",Aug-23
EREWASH BOROUGH COUNCIL,26003,Street Scene                  ,Agency Staff                  ,14-Jul-2023,EXTRA PERSONNEL LTD                     ,"3,490.44",Aug-23
EREWASH BOROUGH COUNCIL,25813,Street Scene                  ,Agency Staff                  ,07-Jul-2023,EXTRA PERSONNEL LTD                     ,"2,855.93",Aug-23
EREWASH BOROUGH COUNCIL,25817,Street Scene                  ,Agency Staff                  ,07-Jul-2023,EXTRA PERSONNEL LTD                     ,"4,921.16",Aug-23
EREWASH BOROUGH COUNCIL,26468,Street Scene                  ,Tyres                         ,31-Jul-2023,LODGE TYRE COMPANY LTD                  ,309.00,Aug-23
EREWASH BOROUGH COUNCIL,26170,CCTV - Ilkeston and Long Eaton,Electricity                   ,12-Jul-2023,TOTALENERGIES GAS & POWER LTD           ,722.01,Aug-23
EREWASH BOROUGH COUNCIL,26425,CCTV - Ilkeston and Long Eaton,Contracted Services           ,27-Jul-2023,SYNECTICS SECURITY LIMITED              ,"3,075.75",Aug-23
EREWASH BOROUGH COUNCIL,26170,Car Parking                   ,Electricity                   ,12-Jul-2023,TOTALENERGIES GAS & POWER LTD           ,"1,343.69",Aug-23
EREWASH BOROUGH COUNCIL,26610,Car Parking                   ,Unmetered Water               ,12-Jun-2023,ANGLIAN WATER BUSINESS (NATIONAL)       ,"2,015.45",Aug-23
EREWASH BOROUGH COUNCIL,26638,Car Parking                   ,Unmetered Water               ,12-Jul-2023,ANGLIAN WATER BUSINESS (NATIONAL)       ,"2,072.52",Aug-23
EREWASH BOROUGH COUNCIL,26609,Car Parking                   ,Unmetered Water               ,12-May-2023,ANGLIAN WATER BUSINESS (NATIONAL)       ,"4,435.89",Aug-23
EREWASH BOROUGH COUNCIL,26459,Car Parking                   ,Contracted Services           ,31-Jul-2023,KINGS ARMOURED SECURITY SERVICES        ,"1,415.20",Aug-23
EREWASH BOROUGH COUNCIL,26710,Car Parking                   ,Civil Parking Enforcement     ,07-Aug-2023,DERBYSHIRE COUNTY COUNCIL...            ,"14,019.93",Aug-23
EREWASH BOROUGH COUNCIL,26584,Car Parking                   ,Credit/Debit Card Charges     ,31-Jul-2023,INTERNATIONAL PARKING SYSTEMS UK LTD    ,"3,411.56",Aug-23
EREWASH BOROUGH COUNCIL,26610,Long Eaton Market             ,Metered Water                 ,12-Jun-2023,ANGLIAN WATER BUSINESS (NATIONAL)       ,351.61,Aug-23
EREWASH BOROUGH COUNCIL,26188,Long Eaton Market             ,Agency Staff                  ,21-Jul-2023,EXTRA PERSONNEL LTD                     ,203.58,Aug-23
EREWASH BOROUGH COUNCIL,26001,Long Eaton Market             ,Agency Staff                  ,14-Jul-2023,EXTRA PERSONNEL LTD                     ,271.44,Aug-23
EREWASH BOROUGH COUNCIL,25819,Long Eaton Market             ,Agency Staff                  ,07-Jul-2023,EXTRA PERSONNEL LTD                     ,271.44,Aug-23
EREWASH BOROUGH COUNCIL,26170,Ilkeston Market               ,Electricity                   ,12-Jul-2023,TOTALENERGIES GAS & POWER LTD           ,672.76,Aug-23
EREWASH BOROUGH COUNCIL,26188,Ilkeston Market               ,Agency Staff                  ,21-Jul-2023,EXTRA PERSONNEL LTD                     ,135.72,Aug-23
EREWASH BOROUGH COUNCIL,26001,Ilkeston Market               ,Agency Staff                  ,14-Jul-2023,EXTRA PERSONNEL LTD                     ,180.96,Aug-23
EREWASH BOROUGH COUNCIL,25819,Ilkeston Market               ,Agency Staff                  ,07-Jul-2023,EXTRA PERSONNEL LTD                     ,180.96,Aug-23
EREWASH BOROUGH COUNCIL,26076,Sports Devt Coaching & Courses,Materials and Consumables     ,17-Jul-2023,GALTEC SOLUTIONS LTD                    ,99.99,Aug-23
EREWASH BOROUGH COUNCIL,26206,Sports Devt Coaching & Courses,General Equipment             ,14-Jul-2023,MAVERICK CUSTOMWEAR LTD.                ,274.36,Aug-23
EREWASH BOROUGH COUNCIL,26418,Commissioned Projects         ,Fees Costs and Expenses       ,19-Jul-2023,THE LITTLE KITCHEN LTD                  ,"1,600.00",Aug-23
EREWASH BOROUGH COUNCIL,26456,Commissioned Projects         ,Grants and Subscriptions      ,27-Jul-2023,BB FALCONRY EXPERIENCE LTD              ,"1,000.00",Aug-23
EREWASH BOROUGH COUNCIL,26265,Commissioned Projects         ,General Equipment             ,24-Jul-2023,KIRK HALLAM COMMUNITY HALL ASSOCIATION. ,"5,500.00",Aug-23
EREWASH BOROUGH COUNCIL,26277,Property and Estates          ,Planned Preventative Maintenan,21-Jul-2023,V G STOKES & SONS.                      ,"1,846.00",Aug-23
EREWASH BOROUGH COUNCIL,26212,Property and Estates          ,Planned Preventative Maintenan,18-Jul-2023,V G STOKES & SONS.                      ,"1,890.00",Aug-23
EREWASH BOROUGH COUNCIL,26278,Property and Estates          ,Planned Preventative Maintenan,21-Jul-2023,V G STOKES & SONS.                      ,"1,974.00",Aug-23
EREWASH BOROUGH COUNCIL,26035,Property and Estates          ,Planned Preventative Maintenan,14-Jul-2023,V G STOKES & SONS.                      ,"1,986.00",Aug-23
EREWASH BOROUGH COUNCIL,25822,Property and Estates          ,Planned Preventative Maintenan,05-Jul-2023,V G STOKES & SONS.                      ,"1,965.00",Aug-23
EREWASH BOROUGH COUNCIL,25845,Property and Estates          ,Planned Preventative Maintenan,07-Jul-2023,V G STOKES & SONS.                      ,"1,850.00",Aug-23
EREWASH BOROUGH COUNCIL,26452,Property and Estates          ,Planned Preventative Maintenan,27-Jul-2023,ALPHA PARTNER (MIDLANDS)  LIMITED       ,604.80,Aug-23
EREWASH BOROUGH COUNCIL,26451,Property and Estates          ,Planned Preventative Maintenan,27-Jul-2023,ALPHA PARTNER (MIDLANDS)  LIMITED       ,669.60,Aug-23
EREWASH BOROUGH COUNCIL,26050,Property and Estates          ,Repairs and Maintenance       ,17-Jul-2023,HORIZON SPECIAL CONTRACTING LTD         ,982.00,Aug-23
EREWASH BOROUGH COUNCIL,26238,Property and Estates          ,Repairs and Maintenance       ,24-Jul-2023,PEEL ELECTRICAL LTD                     ,534.44,Aug-23
EREWASH BOROUGH COUNCIL,26271,Property and Estates          ,Repairs and Maintenance       ,25-Jul-2023,PEEL ELECTRICAL LTD                     ,334.34,Aug-23
EREWASH BOROUGH COUNCIL,26047,Property and Estates          ,Repairs and Maintenance       ,17-Jul-2023,PEEL ELECTRICAL LTD                     ,478.76,Aug-23
EREWASH BOROUGH COUNCIL,26052,Property and Estates          ,Repairs and Maintenance       ,17-Jul-2023,PEEL ELECTRICAL LTD                     ,481.16,Aug-23
EREWASH BOROUGH COUNCIL,25973,Property and Estates          ,Repairs and Maintenance       ,12-Jul-2023,PEEL ELECTRICAL LTD                     ,726.84,Aug-23
EREWASH BOROUGH COUNCIL,25789,Property and Estates          ,Repairs and Maintenance       ,06-Jul-2023,PEEL ELECTRICAL LTD                     ,536.88,Aug-23
EREWASH BOROUGH COUNCIL,26407,Property and Estates          ,Reactive Maintenance          ,27-Jul-2023,ALPHA PARTNER (MIDLANDS)  LIMITED       ,365.00,Aug-23
EREWASH BOROUGH COUNCIL,26424,Property and Estates          ,Reactive Maintenance          ,28-Jul-2023,ALPHA PARTNER (MIDLANDS)  LIMITED       ,410.00,Aug-23
EREWASH BOROUGH COUNCIL,26409,Property and Estates          ,Reactive Maintenance          ,27-Jul-2023,ALPHA PARTNER (MIDLANDS)  LIMITED       ,475.00,Aug-23
EREWASH BOROUGH COUNCIL,26405,Property and Estates          ,Reactive Maintenance          ,27-Jul-2023,ALPHA PARTNER (MIDLANDS)  LIMITED       ,"1,278.16",Aug-23
EREWASH BOROUGH COUNCIL,26060,Property and Estates          ,Reactive Maintenance          ,18-Jul-2023,MDB PLUMBING (NOTTM) LTD                ,275.92,Aug-23
EREWASH BOROUGH COUNCIL,26468,Property and Estates          ,Tyres                         ,31-Jul-2023,LODGE TYRE COMPANY LTD                  ,50.60,Aug-23
EREWASH BOROUGH COUNCIL,25702,Property and Estates          ,Alarms Reactive Maintenance   ,30-Jun-2023,TECSERV UK                              ,852.74,Aug-23
EREWASH BOROUGH COUNCIL,25701,Property and Estates          ,Alarms Reactive Maintenance   ,30-Jun-2023,TECSERV UK                              ,"1,065.67",Aug-23
EREWASH BOROUGH COUNCIL,26168,Merlin Way Depot              ,Electricity                   ,12-Jul-2023,TOTALENERGIES GAS & POWER LTD           ,"2,414.44",Aug-23
EREWASH BOROUGH COUNCIL,26155,Merlin Way Depot              ,Gas                           ,14-Jul-2023,TOTALENERGIES GAS & POWER LTD           ,324.68,Aug-23
EREWASH BOROUGH COUNCIL,26610,Merlin Way Depot              ,Metered Water                 ,12-Jun-2023,ANGLIAN WATER BUSINESS (NATIONAL)       ,"1,670.45",Aug-23
EREWASH BOROUGH COUNCIL,26638,Merlin Way Depot              ,Metered Water                 ,12-Jul-2023,ANGLIAN WATER BUSINESS (NATIONAL)       ,"1,612.49",Aug-23
EREWASH BOROUGH COUNCIL,26609,Merlin Way Depot              ,Metered Water                 ,12-May-2023,ANGLIAN WATER BUSINESS (NATIONAL)       ,"1,612.49",Aug-23
EREWASH BOROUGH COUNCIL,26168,Civic Accommodation Long Eaton,Electricity                   ,12-Jul-2023,TOTALENERGIES GAS & POWER LTD           ,"3,255.07",Aug-23
EREWASH BOROUGH COUNCIL,26609,Civic Accommodation Long Eaton,Metered Water                 ,12-May-2023,ANGLIAN WATER BUSINESS (NATIONAL)       ,390.52,Aug-23
EREWASH BOROUGH COUNCIL,26004,Civic Accommodation Ilkeston  ,Agency Staff                  ,14-Jul-2023,EXTRA PERSONNEL LTD                     ,292.03,Aug-23
EREWASH BOROUGH COUNCIL,26170,Civic Accommodation Ilkeston  ,Electricity                   ,12-Jul-2023,TOTALENERGIES GAS & POWER LTD           ,470.75,Aug-23
EREWASH BOROUGH COUNCIL,26168,Civic Accommodation Ilkeston  ,Electricity                   ,12-Jul-2023,TOTALENERGIES GAS & POWER LTD           ,"2,685.54",Aug-23
EREWASH BOROUGH COUNCIL,26155,Civic Accommodation Ilkeston  ,Gas                           ,14-Jul-2023,TOTALENERGIES GAS & POWER LTD           ,918.40,Aug-23
EREWASH BOROUGH COUNCIL,26610,Civic Accommodation Ilkeston  ,Metered Water                 ,12-Jun-2023,ANGLIAN WATER BUSINESS (NATIONAL)       ,393.35,Aug-23
EREWASH BOROUGH COUNCIL,26638,Civic Accommodation Ilkeston  ,Metered Water                 ,12-Jul-2023,ANGLIAN WATER BUSINESS (NATIONAL)       ,402.44,Aug-23
EREWASH BOROUGH COUNCIL,26609,Civic Accommodation Ilkeston  ,Metered Water                 ,12-May-2023,ANGLIAN WATER BUSINESS (NATIONAL)       ,420.94,Aug-23
EREWASH BOROUGH COUNCIL,26170,Toll Bar House                ,Electricity                   ,12-Jul-2023,TOTALENERGIES GAS & POWER LTD           ,"1,108.54",Aug-23
EREWASH BOROUGH COUNCIL,26610,Toll Bar House                ,Metered Water                 ,12-Jun-2023,ANGLIAN WATER BUSINESS (NATIONAL)       ,"1,353.33",Aug-23
EREWASH BOROUGH COUNCIL,26638,Toll Bar House                ,Metered Water                 ,12-Jul-2023,ANGLIAN WATER BUSINESS (NATIONAL)       ,"1,155.91",Aug-23
EREWASH BOROUGH COUNCIL,26609,Toll Bar House                ,Metered Water                 ,12-May-2023,ANGLIAN WATER BUSINESS (NATIONAL)       ,998.67,Aug-23
EREWASH BOROUGH COUNCIL,26274,Toll Bar House                ,Alarms Planned Maintenence    ,24-Jul-2023,TECSERV UK                              ,256.76,Aug-23
EREWASH BOROUGH COUNCIL,26168,Sandiacre Friesland Sports Ctr,Electricity                   ,12-Jul-2023,TOTALENERGIES GAS & POWER LTD           ,"1,540.65",Aug-23
EREWASH BOROUGH COUNCIL,26155,Sandiacre Friesland Sports Ctr,Gas                           ,14-Jul-2023,TOTALENERGIES GAS & POWER LTD           ,685.46,Aug-23
EREWASH BOROUGH COUNCIL,26136,Compensation and Pensions     ,Compensatory Added Years      ,19-Jul-2023,DERBYSHIRE COUNTY COUNCIL...            ,"18,960.38",Aug-23
EREWASH BOROUGH COUNCIL,26065,Compensation and Pensions     ,Compensatory Added Years      ,18-Jul-2023,DERBYSHIRE COUNTY COUNCIL...            ,"95,000.00",Aug-23
EREWASH BOROUGH COUNCIL,26065,Compensation and Pensions     ,Compensatory Added Years      ,18-Jul-2023,DERBYSHIRE COUNTY COUNCIL...            ,"109,101.47",Aug-23
EREWASH BOROUGH COUNCIL,27699,EBC Balance Sheet             ,AP System Creditors           ,02-Aug-2023,LLOYDS BANK PLC                         ,"4,437.17",Aug-23
EREWASH BOROUGH COUNCIL,26263,EBC Balance Sheet             ,Payroll Coll Acc - Income Tax ,18-Aug-2023,HMRC CUMBERNAULD                        ,"73,309.02",Aug-23
EREWASH BOROUGH COUNCIL,26261,EBC Balance Sheet             ,Payroll Coll Acc - Income Tax ,18-Aug-2023,HMRC CUMBERNAULD                        ,468.00,Aug-23
EREWASH BOROUGH COUNCIL,26260,EBC Balance Sheet             ,Payroll Coll Acc Superanuation,16-Aug-2023,DERBYSHIRE COUNTY COUNCIL...            ,"167,076.20",Aug-23
EREWASH BOROUGH COUNCIL,26260,EBC Balance Sheet             ,Payroll Coll Acc Superanuation,16-Aug-2023,DERBYSHIRE COUNTY COUNCIL...            ,"41,834.00",Aug-23
EREWASH BOROUGH COUNCIL,26263,EBC Balance Sheet             ,Payroll Coll Acc National Ins ,18-Aug-2023,HMRC CUMBERNAULD                        ,"96,628.58",Aug-23
EREWASH BOROUGH COUNCIL,26261,EBC Balance Sheet             ,Payroll Coll Acc National Ins ,18-Aug-2023,HMRC CUMBERNAULD                        ,542.99,Aug-23
EREWASH BOROUGH COUNCIL,26263,EBC Balance Sheet             ,Payroll Coll Acc Student Loan ,18-Aug-2023,HMRC CUMBERNAULD                        ,"1,479.00",Aug-23
EREWASH BOROUGH COUNCIL,27032,EBC Balance Sheet             ,Capital Grants Unapplied Acct ,14-Aug-2023,NOTTINGHAM CITY COUNCIL                 ,"45,946.95",Aug-23
EREWASH BOROUGH COUNCIL,27699,EBC Balance Sheet             ,Lloyds Credit Card Suspense   ,02-Aug-2023,LLOYDS BANK PLC                         ,"6,375.74",Aug-23
EREWASH BOROUGH COUNCIL,27649,EBC Balance Sheet             ,NNDR Coll Fund Control Account,21-Aug-2023,"DEPT FOR LEVELLING UP,HOUSING&COMMUNITIE","868,659.00",Aug-23
EREWASH BOROUGH COUNCIL,27107,EBC Balance Sheet             ,EBC Fit for Work Scheme       ,22-Aug-2023,PARKWOOD LEISURE LTD                    ,420.50,Aug-23
EREWASH BOROUGH COUNCIL,26505,EBC Balance Sheet             ,AR Refunds Control Account    ,02-Aug-2023,OCKBROOK AND BORROWASH PARISH COUNCIL   ,"1,144.53",Aug-23
EREWASH BOROUGH COUNCIL,27109,EBC Balance Sheet             ,Payroll Coll Acc - Trade Union,22-Aug-2023,UNISON                                  ,328.50,Aug-23
EREWASH BOROUGH COUNCIL,27079,EBC Balance Sheet             ,Payroll Coll Acc Labour Party ,22-Aug-2023,EREWASH LABOUR GROUP                    ,"1,331.57",Aug-23
EREWASH BOROUGH COUNCIL,27111,EBC Balance Sheet             ,Payroll Coll Acc - AVCS       ,22-Aug-2023,PRUDENTIAL                              ,"9,404.14",Aug-23
EREWASH BOROUGH COUNCIL,26270,EBC Balance Sheet             ,Payroll Coll Acc - AVCS       ,24-Jul-2023,AVC WISE LIMITED                        ,383.64,Aug-23
EREWASH BOROUGH COUNCIL,26614,EBC Balance Sheet             ,Childcare Salary Sacrifice    ,04-Aug-2023,KIDDIVOUCHERS LTD                       ,588.00,Aug-23
EREWASH BOROUGH COUNCIL,27105,EBC Balance Sheet             ,Payroll Coll Acc Attmnt Orders,22-Aug-2023,CHILD MAINTENANCE SERVICE               ,817.85,Aug-23
EREWASH BOROUGH COUNCIL,25853,Leisure Services              ,Contracted Services           ,06-Jul-2023,MAX ASSOCIATES (HOLDINGS) LTD           ,"1,800.00",Aug-23
EREWASH BOROUGH COUNCIL,26449,Planning                      ,Structural Property Works     ,26-Jul-2023,WATERMAN INFRASTRUCURE & ENVIRONMENT LTD,"2,000.00",Aug-23
EREWASH BOROUGH COUNCIL,27062,Planning                      ,External Property Works       ,31-Jul-2023,COREUS PROJECTS LTD                     ,"3,564.00",Aug-23
EREWASH BOROUGH COUNCIL,26448,Planning                      ,External Property Works       ,26-Jul-2023,WATERMAN INFRASTRUCURE & ENVIRONMENT LTD,"5,750.00",Aug-23
EREWASH BOROUGH COUNCIL,26652,Planning                      ,External Property Works       ,30-May-2023,BROWNE JACOBSON                         ,336.00,Aug-23
EREWASH BOROUGH COUNCIL,26221,Planning                      ,External Property Works       ,19-Jul-2023,GATELEY HAMER LTD                       ,"1,580.20",Aug-23
EREWASH BOROUGH COUNCIL,26870,Planning                      ,External Property Works       ,31-Jul-2023,31 TEN CONSULTING LTD                   ,"7,325.00",Aug-23
EREWASH BOROUGH COUNCIL,26419,Planning                      ,External Property Works       ,30-Jun-2023,INNES ENGLAND LTD                       ,"2,000.00",Aug-23
EREWASH BOROUGH COUNCIL,26867,Regulatory and Housing Service,Disabled Facilities Grant     ,26-Jul-2023,DERBYSHIRE COUNTY COUNCIL...            ,"6,050.28",Aug-23
EREWASH BOROUGH COUNCIL,26509,Regulatory and Housing Service,Disabled Facilities Grant     ,03-Jul-2023,DERBYSHIRE COUNTY COUNCIL...            ,"8,722.54",Aug-23
EREWASH BOROUGH COUNCIL,26516,Shared Prosperity             ,Grants and Subscriptions      ,11-Jul-2023,EREWASH PARTNERSHIP LTD                 ,"100,000.00",Aug-23
EREWASH BOROUGH COUNCIL,26263,Human Resources               ,Apprenticeship Levy           ,18-Aug-2023,HMRC CUMBERNAULD                        ,"2,055.00",Aug-23
EREWASH BOROUGH COUNCIL,26263,Human Resources               ,Apprenticeship Levy           ,18-Aug-2023,HMRC CUMBERNAULD                        ,"1,250.00",Aug-23
EREWASH BOROUGH COUNCIL,26864,Human Resources               ,Long Service Award            ,09-Aug-2023,PARK RETAIL                             ,500.00,Aug-23
EREWASH BOROUGH COUNCIL,26639,,,07-Aug-2023,PENHAM EXCEL LIMITED                    ,826.76,Aug-23
EREWASH BOROUGH COUNCIL,26237,,,24-Jul-2023,PENHAM EXCEL LIMITED                    ,"1,695.43",Aug-23
EREWASH BOROUGH COUNCIL,26482,,,31-Jul-2023,MARSTON HOLDINGS LIMITED                ,250.91,Aug-23
EREWASH BOROUGH COUNCIL,26477,,,31-Jul-2023,MARSTON HOLDINGS LIMITED                ,435.42,Aug-23
